bitfinex/quotes_BTCUSD_20241002
["timestamp","ask_amount","ask_price","bid_price","bid_amount"]
[1727909138044,0.002,60834.0,60833.0,0.71449758]
[1727909140019,0.002817,60834.0,60833.0,0.71449758]
[1727909140287,0.002817,60834.0,60833.0,0.358818]
[1727909140513,0.002817,60834.0,60833.0,0.099034]
[1727909140760,0.002817,60834.0,60833.0,0.263418]
[1727909142746,0.002817,60834.0,60833.0,0.592188]
[1727909145884,0.002817,60834.0,60833.0,0.84997471]
[1727909149436,0.002817,60834.0,60833.0,0.85415018]
[1727909149931,0.002817,60834.0,60833.0,0.84997471]
[1727909158760,0.002817,60834.0,60833.0,0.75537471]
[1727909159002,0.002817,60834.0,60833.0,0.427804]
[1727909159233,0.002817,60834.0,60833.0,0.350404]
[1727909159503,0.19296616,60834.0,60833.0,0.350404]
[1727909160203,0.19296616,60834.0,60833.0,0.344404]
[1727909160204,0.19196616,60834.0,60833.0,0.344404]
[1727909160444,0.43819678,60834.0,60833.0,0.344404]
[1727909160702,0.43819678,60834.0,60833.0,0.350404]
[1727909160703,0.19296616,60834.0,60833.0,0.350404]
[1727909160946,0.02758516,60834.0,60833.0,0.577788]
[1727909161206,0.02858516,60834.0,60833.0,0.583788]
[1727909161437,0.02858516,60834.0,60833.0,0.77997458]
[1727909161906,0.02858516,60834.0,60833.0,0.76597458]
[1727909161907,0.02758516,60834.0,60833.0,0.76597458]
[1727909162140,0.02858516,60834.0,60833.0,0.77997458]
[1727909162868,0.02858516,60834.0,60833.0,0.78397458]
[1727909163094,0.02758516,60834.0,60833.0,0.77997458]
[1727909163330,0.02858516,60834.0,60833.0,0.78397458]
[1727909164041,0.002817,60834.0,60833.0,0.595788]
[1727909164274,0.002817,60834.0,60833.0,0.431404]
[1727909164532,0.167198,60834.0,60833.0,0.431404]
[1727909164777,0.167198,60834.0,60833.0,0.348404]
[1727909165011,0.002817,60834.0,60833.0,0.348404]
[1727909165717,0.002817,60834.0,60833.0,0.512788]
[1727909165951,0.002817,60834.0,60833.0,0.77687458]
[1727909166203,0.002817,60834.0,60833.0,0.86917458]
[1727909166426,0.002817,60834.0,60833.0,1.03236129]
[1727909167147,0.002817,60834.0,60833.0,0.570688]
[1727909167148,0.000817,60834.0,60833.0,0.570688]
[1727909167609,0.000817,60834.0,60833.0,0.575688]
[1727909167610,0.001817,60834.0,60833.0,0.575688]
[1727909167845,0.001817,60834.0,60833.0,0.584688]
[1727909168307,0.000817,60834.0,60833.0,0.570688]
[1727909168535,0.001817,60834.0,60833.0,0.584688]
[1727909169244,0.002817,60834.0,60833.0,0.598688]
[1727909169466,0.001817,60834.0,60833.0,0.584688]
[1727909169921,0.001817,60834.0,60833.0,0.598688]
[1727909170875,0.001817,60834.0,60833.0,0.434304]
[1727909171099,0.001817,60834.0,60833.0,0.598688]
[1727909171329,0.02758492,60834.0,60833.0,0.598688]
[1727909174118,0.001817,60834.0,60833.0,0.598688]
[1727909175941,0.001817,60834.0,60833.0,1.04936129]
[1727909179754,0.001817,60834.0,60833.0,0.598688]
[1727909185672,0.001817,60834.0,60833.0,0.95006129]
[1727909186137,0.001817,60834.0,60833.0,1.04746129]
[1727909189667,0.000817,60838.0,60837.0,0.52595958]
[1727909189934,0.000817,60838.0,60837.0,1.14089629]
[1727909191982,0.001817,60838.0,60837.0,1.15489629]
[1727909192447,0.02657918,60849.0,60848.0,0.164343]
[1727909192448,0.000817,60849.0,60848.0,0.164343]
[1727909192690,0.000817,60849.0,60848.0,0.92350629]
[1727909193861,0.001817,60849.0,60848.0,0.93950629]
[1727909194353,0.001817,60849.0,60848.0,0.93750629]
[1727909195373,0.001817,60849.0,60848.0,0.94373084]
[1727909195643,0.000817,60849.0,60848.0,0.94173084]
[1727909195879,0.000817,60849.0,60848.0,0.92773084]
[1727909196111,0.000817,60849.0,60848.0,0.94373084]
[1727909196363,0.001817,60849.0,60848.0,0.95573084]
[1727909197121,0.001817,60849.0,60848.0,0.94173084]
[1727909197385,0.001817,60849.0,60848.0,0.95573084]
[1727909198223,0.000817,60849.0,60848.0,0.94173084]
[1727909198455,0.001817,60849.0,60848.0,0.95573084]
[1727909198691,0.001817,60849.0,60848.0,0.94173084]
[1727909198924,0.002817,60849.0,60848.0,0.96973084]
[1727909199396,0.002817,60849.0,60848.0,0.95573084]
[1727909199654,0.002817,60849.0,60848.0,0.96973084]
[1727909200164,0.002817,60849.0,60848.0,1.07173084]
[1727909200671,0.002817,60849.0,60848.0,1.16903084]
[1727909201166,0.002817,60849.0,60848.0,1.19203084]
[1727909207634,0.02575621,60863.0,60856.0,0.002]
[1727909207928,0.24623062,60865.0,60864.0,0.1643]
[1727909208193,0.24623062,60865.0,60864.0,0.4929]
[1727909208465,0.24623062,60875.0,60874.0,0.164273]
[1727909208723,0.24623062,60875.0,60874.0,0.68100958]
[1727909208965,0.255638,60888.0,60883.0,0.164249]
[1727909208966,0.0914,60888.0,60883.0,0.164249]
[1727909209205,0.0914,60888.0,60883.0,0.68093558]
[1727909209756,0.000817,60884.0,60883.0,0.84412229]
[1727909210261,0.000817,60884.0,60883.0,0.492749]
[1727909211047,0.000817,60884.0,60883.0,0.506749]
[1727909211600,0.000817,60884.0,60883.0,0.520749]
[1727909212346,0.02656427,60884.0,60883.0,0.520749]
[1727909214101,0.000817,60884.0,60883.0,0.520749]
[1727909217083,0.02656418,60884.0,60883.0,0.520749]
[1727909217304,0.000817,60884.0,60883.0,0.520749]
[1727909217837,0.000817,60884.0,60883.0,0.506749]
[1727909218073,0.000817,60884.0,60883.0,0.520749]
[1727909218330,0.000817,60884.0,60883.0,0.506749]
[1727909218576,0.000817,60884.0,60883.0,0.520749]
[1727909219843,0.000817,60884.0,60883.0,0.87212229]
[1727909220089,0.000817,60884.0,60883.0,0.95162229]
[1727909221353,0.000817,60884.0,60883.0,0.92362229]
[1727909221599,0.000817,60884.0,60883.0,0.95162229]
[1727909221844,0.000817,60884.0,60883.0,0.94185154]
[1727909222346,0.000817,60884.0,60883.0,0.94685154]
[1727909223102,0.000817,60884.0,60883.0,0.96085154]
[1727909224136,0.000817,60884.0,60883.0,0.94685154]
[1727909224376,0.000817,60884.0,60883.0,0.96085154]
[1727909227339,0.000817,60884.0,60883.0,0.76766496]
[1727909227605,0.24214762,60894.0,60892.0,0.164223]
[1727909227872,0.328457,60891.0,60884.0,0.49167471]
[1727909228142,0.0949,60890.0,60885.0,0.24623062]
[1727909228392,0.25913,60890.0,60887.0,0.164238]
[1727909228645,0.25913,60890.0,60885.0,0.32847]
[1727909228646,0.0949,60890.0,60889.0,0.164233]
[1727909228884,0.0949,60890.0,60889.0,0.492703]
[1727909229125,0.0949,60890.0,60889.0,0.32847]
[1727909229362,0.25913,60890.0,60889.0,0.32847]
[1727909229600,0.0949,60890.0,60889.0,0.32847]
[1727909230328,0.0949,60890.0,60889.0,0.492703]
[1727909231068,0.25913,60890.0,60889.0,0.34247]
[1727909231550,0.25913,60890.0,60889.0,0.35647]
[1727909235357,0.259947,60890.0,60889.0,0.35647]
[1727909237186,0.259947,60890.0,60889.0,0.34247]
[1727909237469,0.259947,60890.0,60889.0,0.34347]
[1727909237709,0.439847,60890.0,60889.0,0.32847]
[1727909237968,0.439847,60890.0,60889.0,0.32947]
[1727909238223,0.439847,60890.0,60889.0,0.33347]
[1727909239484,0.439847,60890.0,60889.0,0.33547]
[1727909239724,0.439847,60890.0,60889.0,0.33047]
[1727909239970,0.46559649,60890.0,60889.0,0.33047]
[1727909240464,0.46759649,60890.0,60889.0,0.33047]
[1727909240738,0.46559649,60890.0,60889.0,0.33047]
[1727909241024,0.51658936,60890.0,60889.0,0.33247]
[1727909241305,0.69226468,60890.0,60889.0,0.03327]
[1727909241562,0.69241632,60890.0,60889.0,0.03327]
[1727909241866,0.69241629,60890.0,60889.0,0.02927]
[1727909242088,0.59527893,60890.0,60889.0,0.02927]
[1727909242326,0.59427893,60890.0,60889.0,0.02927]
[1727909243517,0.71876112,60890.0,60889.0,0.02927]
[1727909244504,0.64495221,60890.0,60889.0,0.02927]
[1727909244746,0.002,60880.0,60879.0,0.24623062]
[1727909245021,0.70043105,60880.0,60879.0,0.24623062]
[1727909245271,0.164284,60870.0,60862.0,0.0934]
[1727909245541,0.37747058,60870.0,60857.0,0.0828]
[1727909245772,0.47747058,60870.0,60857.0,0.0828]
[1727909246012,0.164284,60870.0,60861.0,0.164307]
[1727909246280,0.164288,60869.0,60866.0,0.0765]
[1727909246519,0.1,60877.0,60869.0,0.32857]
[1727909246759,0.1,60877.0,60869.0,0.492856]
[1727909246760,0.328548,60874.0,60869.0,0.492856]
[1727909247048,0.328548,60874.0,60869.0,0.32857]
[1727909247302,0.164279,60872.0,60869.0,0.492857]
[1727909247565,0.1,60875.0,60869.0,0.32857]
[1727909247827,0.164284,60870.0,60869.0,0.32857]
[1727909248072,0.164284,60870.0,60869.0,0.33957]
[1727909248319,0.164284,60870.0,60869.0,0.33857]
[1727909248828,0.164284,60870.0,60869.0,0.32857]
[1727909249067,0.164284,60870.0,60869.0,0.34257]
[1727909249568,0.164284,60870.0,60869.0,0.35557]
[1727909249808,0.19004011,60870.0,60869.0,0.35557]
[1727909250042,0.19004011,60870.0,60869.0,0.34257]
[1727909250710,0.19004011,60870.0,60869.0,0.35657]
[1727909252479,0.02575611,60870.0,60869.0,0.35657]
[1727909253960,0.02575611,60870.0,60869.0,0.43417]
[1727909254193,0.164282,60871.0,60869.0,0.43417]
[1727909255185,0.164284,60870.0,60869.0,0.34257]
[1727909255425,0.164284,60870.0,60869.0,0.35557]
[1727909256232,0.264284,60870.0,60869.0,0.35557]
[1727909256498,0.264284,60870.0,60869.0,0.34157]
[1727909257025,0.264284,60870.0,60869.0,0.32857]
[1727909257249,0.264284,60870.0,60869.0,0.34257]
[1727909257503,0.29004047,60870.0,60869.0,0.35657]
[1727909258020,0.29004047,60870.0,60869.0,0.34257]
[1727909258322,0.29004047,60870.0,60869.0,0.35657]
[1727909259788,0.29004047,60870.0,60869.0,0.34257]
[1727909260047,0.29004047,60870.0,60869.0,0.33357]
[1727909260299,0.29004047,60870.0,60869.0,0.33757]
[1727909260796,0.29004047,60870.0,60869.0,0.32857]
[1727909261038,0.29004047,60870.0,60869.0,0.33057]
[1727909261275,0.29004047,60870.0,60869.0,0.330202]
[1727909261507,0.29104047,60870.0,60869.0,0.330202]
[1727909263748,0.29004047,60870.0,60869.0,0.330202]
[1727909264017,0.53627109,60870.0,60869.0,0.330202]
[1727909264261,0.36904047,60870.0,60869.0,0.335202]
[1727909264727,0.36904047,60870.0,60869.0,0.333202]
[1727909264728,0.343284,60870.0,60869.0,0.333202]
[1727909264964,0.343284,60870.0,60869.0,0.335202]
[1727909265457,0.343284,60870.0,60869.0,0.330202]
[1727909266265,0.343284,60870.0,60869.0,0.336202]
[1727909266487,0.264284,60870.0,60869.0,0.330202]
[1727909266710,0.267284,60870.0,60869.0,0.330202]
[1727909269256,0.2930425,60870.0,60869.0,0.330202]
[1727909269479,0.2900425,60870.0,60869.0,0.330202]
[1727909269921,0.2900425,60870.0,60869.0,0.331202]
[1727909270378,0.2900425,60870.0,60869.0,0.332202]
[1727909271281,0.2920425,60870.0,60869.0,0.332202]
[1727909271518,0.36405438,60870.0,60869.0,0.332202]
[1727909272060,0.36374307,60870.0,60869.0,0.332202]
[1727909272404,0.44014307,60870.0,60869.0,0.332202]
[1727909272584,0.189314,60859.0,60858.0,0.24623062]
[1727909272824,0.55650058,60859.0,60858.0,0.24623062]
[1727909273052,0.266333,60852.0,60851.0,0.24623062]
[1727909273290,0.45451958,60852.0,60851.0,0.24623062]
[1727909273525,0.1,60851.0,60849.0,0.001634]
[1727909273767,0.264338,60850.0,60849.0,0.001634]
[1727909274724,0.266338,60850.0,60849.0,0.003634]
[1727909275901,0.266338,60850.0,60849.0,0.004634]
[1727909276158,0.266338,60850.0,60849.0,0.001634]
[1727909276380,0.29210554,60850.0,60849.0,0.004634]
[1727909276614,0.266338,60850.0,60849.0,0.008634]
[1727909279484,0.29210543,60850.0,60849.0,0.008634]
[1727909281049,0.31510543,60850.0,60849.0,0.008634]
[1727909281299,0.39410543,60850.0,60849.0,0.008634]
[1727909281757,0.51683058,60850.0,60849.0,0.008634]
[1727909282001,0.289341,60849.0,60848.0,0.001634]
[1727909282250,0.47754858,60841.0,60837.0,0.001634]
[1727909282488,0.55108342,60841.0,60837.0,0.001634]
[1727909282716,0.55109403,60841.0,60837.0,0.001634]
[1727909282983,0.47832159,60841.0,60838.0,0.0995]
[1727909283450,0.48432159,60841.0,60838.0,0.0995]
[1727909283671,0.47832159,60841.0,60838.0,0.0995]
[1727909284170,0.45854858,60841.0,60838.0,0.0995]
[1727909284410,0.45354858,60841.0,60838.0,0.0995]
[1727909284637,0.45354858,60841.0,60840.0,0.00232]
[1727909284878,0.45554858,60841.0,60840.0,0.00232]
[1727909285106,0.264362,60841.0,60840.0,0.00232]
[1727909285799,0.45254858,60841.0,60840.0,0.00232]
[1727909286021,0.45254858,60841.0,60840.0,0.00132]
[1727909286252,0.45254858,60841.0,60840.0,0.00332]
[1727909286482,0.45254858,60841.0,60840.0,0.00532]
[1727909286707,0.264362,60841.0,60840.0,0.00332]
[1727909287163,0.29013264,60841.0,60840.0,0.006954]
[1727909288370,0.264362,60841.0,60840.0,0.006954]
[1727909290459,0.2901323,60841.0,60840.0,0.006954]
[1727909292839,0.2901323,60841.0,60840.0,0.072852]
[1727909294278,0.264362,60841.0,60840.0,0.072852]
[1727909297354,0.42872,60842.0,60840.0,0.072852]
[1727909297582,0.02576982,60841.0,60840.0,0.072852]
[1727909298305,0.02576982,60841.0,60840.0,0.413417]
[1727909298537,0.02576982,60841.0,60840.0,0.249052]
[1727909298771,0.02576982,60841.0,60840.0,0.413417]
[1727909299011,0.02576982,60841.0,60840.0,0.414417]
[1727909299976,0.02576982,60841.0,60840.0,0.411417]
[1727909300218,0.02576982,60841.0,60840.0,0.416417]
[1727909300915,0.29013182,60841.0,60840.0,0.252052]
[1727909303795,0.29013182,60841.0,60840.0,0.170452]
[1727909304261,0.29013182,60841.0,60840.0,0.073852]
[1727909304262,0.4803184,60841.0,60840.0,0.073852]
[1727909304543,0.3135005,60841.0,60840.0,0.073852]
[1727909304778,0.264362,60841.0,60840.0,0.073852]
[1727909305017,0.16435,60846.0,60840.0,0.249752]
[1727909305264,0.164359,60843.0,60840.0,0.249752]
[1727909305558,0.164357,60843.0,60840.0,0.414117]
[1727909306003,0.164357,60843.0,60840.0,0.247752]
[1727909306467,0.16436,60842.0,60840.0,0.247752]
[1727909306691,0.16436,60842.0,60840.0,0.244752]
[1727909307608,0.19012771,60842.0,60840.0,0.245752]
[1727909307885,0.02576771,60842.0,60841.0,0.164362]
[1727909308127,0.02676771,60842.0,60841.0,0.52684858]
[1727909308597,0.000817,60850.0,60849.0,0.336741]
[1727909310764,0.001817,60850.0,60849.0,0.345741]
[1727909310988,0.001817,60850.0,60849.0,0.1934]
[1727909311228,0.166155,60850.0,60849.0,0.1934]
[1727909311733,0.001817,60850.0,60849.0,0.1934]
[1727909312210,0.166155,60850.0,60849.0,0.1934]
[1727909313463,0.001817,60850.0,60849.0,0.1934]
[1727909313907,0.166155,60850.0,60849.0,0.1934]
[1727909314142,0.001817,60850.0,60849.0,0.1934]
[1727909315343,0.001817,60850.0,60849.0,0.54592758]
[1727909317523,0.001817,60850.0,60849.0,0.70911429]
[1727909317767,0.0257623,60853.0,60852.0,0.164333]
[1727909317995,0.0257623,60853.0,60852.0,0.336533]
[1727909318223,0.24623062,60862.0,60852.0,0.32867]
[1727909318451,0.24623062,60862.0,60861.0,0.336508]
[1727909318688,0.24623062,60862.0,60861.0,0.50082]
[1727909318689,0.41053662,60862.0,60861.0,0.50082]
[1727909318934,0.164306,60862.0,60861.0,0.50082]
[1727909320195,0.164306,60862.0,60861.0,0.32862]
[1727909320442,0.264306,60862.0,60861.0,0.32862]
[1727909320948,0.33812062,60862.0,60861.0,0.32862]
[1727909321642,0.31347289,60862.0,60861.0,0.32862]
[1727909321867,0.264306,60862.0,60861.0,0.32862]
[1727909322102,0.31347413,60862.0,60861.0,0.32862]
[1727909322565,0.33812062,60862.0,60861.0,0.32862]
[1727909323301,0.264306,60862.0,60861.0,0.32862]
[1727909323535,0.265123,60862.0,60861.0,0.32862]
[1727909323810,0.265123,60862.0,60861.0,0.32962]
[1727909324464,0.31428208,60862.0,60861.0,0.32962]
[1727909324679,0.31428208,60862.0,60861.0,0.32862]
[1727909324889,0.265123,60862.0,60861.0,0.32862]
[1727909325171,0.37554249,60862.0,60861.0,0.32862]
[1727909325384,0.40014737,60862.0,60861.0,0.32862]
[1727909325613,0.275123,60862.0,60861.0,0.32962]
[1727909326277,0.32378916,60862.0,60861.0,0.32962]
[1727909326502,0.270123,60862.0,60861.0,0.32962]
[1727909326720,0.265123,60862.0,60861.0,0.32862]
[1727909327208,0.3137972,60862.0,60861.0,0.33162]
[1727909327433,0.3137972,60862.0,60861.0,0.32862]
[1727909328088,0.3147972,60862.0,60861.0,0.32862]
[1727909328770,0.34055948,60862.0,60861.0,0.32862]
[1727909329428,0.34057576,60862.0,60861.0,0.32862]
[1727909329935,0.31481348,60862.0,60861.0,0.32862]
[1727909330257,0.46366375,60862.0,60861.0,0.32862]
[1727909330424,0.58661659,60862.0,60861.0,0.32862]
[1727909330659,0.46366375,60862.0,60861.0,0.32862]
[1727909330890,0.46266375,60862.0,60861.0,0.32862]
[1727909331109,0.58561659,60862.0,60861.0,0.33062]
[1727909331762,0.61137815,60862.0,60861.0,0.33362]
[1727909333353,0.48842531,60862.0,60861.0,0.33362]
[1727909333575,0.58677964,60862.0,60861.0,0.33362]
[1727909334235,0.56101808,60862.0,60861.0,0.33362]
[1727909335514,0.58561659,60862.0,60861.0,0.33362]
[1727909335957,0.58590173,60862.0,60861.0,0.33362]
[1727909336429,0.69983629,60862.0,60861.0,0.33362]
[1727909336687,0.50401699,60862.0,60861.0,0.33362]
[1727909336906,0.6515683,60862.0,60861.0,0.33362]
[1727909337168,0.780346,60862.0,60861.0,0.33362]
[1727909337425,0.82910882,60862.0,60861.0,0.33162]
[1727909337653,0.82910882,60862.0,60861.0,0.32862]
[1727909338148,0.83010882,60862.0,60861.0,0.32862]
[1727909338395,0.82710882,60862.0,60861.0,0.32862]
[1727909338607,0.82910882,60862.0,60861.0,0.32862]
[1727909338828,0.83510882,60862.0,60861.0,0.32962]
[1727909339478,0.82710882,60862.0,60861.0,0.32862]
[1727909339715,0.83610882,60862.0,60861.0,0.32862]
[1727909339964,0.83810882,60862.0,60861.0,0.32862]
[1727909340931,1.48606882,60862.0,60861.0,0.32862]
[1727909341167,0.189335,60851.0,60850.0,0.24786462]
[1727909341409,0.60252899,60851.0,60850.0,0.24786462]
[1727909341649,0.60252899,60851.0,60850.0,0.001634]
[1727909341888,0.75010661,60851.0,60850.0,0.001634]
[1727909342157,1.02416071,60851.0,60850.0,0.001634]
[1727909342632,0.62829932,60851.0,60850.0,0.001634]
[1727909343133,0.63429932,60851.0,60850.0,0.002634]
[1727909343632,0.78587694,60851.0,60850.0,0.002634]
[1727909343870,0.79187694,60851.0,60850.0,0.003634]
[1727909344107,0.76610551,60851.0,60850.0,0.003634]
[1727909344603,0.61852899,60851.0,60850.0,0.003634]
[1727909344841,0.76610551,60851.0,60850.0,0.003634]
[1727909345590,0.61852899,60851.0,60850.0,0.003634]
[1727909345839,0.61846899,60851.0,60850.0,0.003634]
[1727909346351,0.56982158,60851.0,60850.0,0.003634]
[1727909346865,0.61845471,60851.0,60850.0,0.003634]
[1727909347107,0.59559206,60851.0,60850.0,0.003634]
[1727909347865,0.51929206,60851.0,60850.0,0.003634]
[1727909348163,0.49352158,60851.0,60850.0,0.003634]
[1727909349360,0.49152158,60851.0,60850.0,0.003634]
[1727909349604,0.49352158,60851.0,60850.0,0.003634]
[1727909351071,0.51929148,60851.0,60850.0,0.003634]
[1727909351322,0.56788586,60851.0,60850.0,0.003634]
[1727909351575,0.84189711,60851.0,60850.0,0.003634]
[1727909351833,0.45354074,60851.0,60850.0,0.003634]
[1727909352055,0.3061049,60851.0,60850.0,0.102934]
[1727909353639,0.25525586,60851.0,60850.0,0.178934]
[1727909353855,0.180335,60851.0,60850.0,0.178934]
[1727909354335,0.016,60851.0,60850.0,0.178934]
[1727909354596,0.016,60851.0,60850.0,0.343272]
[1727909354817,0.006,60851.0,60850.0,0.342272]
[1727909355074,0.006,60851.0,60850.0,0.343272]
[1727909355322,0.24623062,60857.0,60854.0,0.164327]
[1727909355580,0.24623062,60857.0,60853.0,0.342829]
[1727909355581,0.164323,60856.0,60853.0,0.342829]
[1727909355865,0.1,60856.0,60854.0,0.1684]
[1727909356291,0.1,60855.0,60853.0,0.164329]
[1727909357006,0.164327,60854.0,60852.0,0.1772]
[1727909357295,0.12576292,60855.0,60852.0,0.1772]
[1727909357544,0.02576292,60855.0,60853.0,0.1772]
[1727909357788,0.02676292,60855.0,60854.0,0.1772]
[1727909358041,0.164325,60855.0,60854.0,0.1772]
[1727909358750,0.164325,60855.0,60854.0,0.1832]
[1727909358990,0.165325,60855.0,60854.0,0.1862]
[1727909359248,0.165325,60855.0,60854.0,0.1802]
[1727909359514,0.166325,60855.0,60854.0,0.1862]
[1727909360817,0.002,60855.0,60854.0,0.1862]
[1727909361279,0.002,60855.0,60854.0,0.350527]
[1727909361280,0.02776211,60855.0,60854.0,0.350527]
[1727909378234,0.002,60855.0,60854.0,0.350527]
[1727909381369,0.002,60855.0,60854.0,0.1862]
[1727909381370,0.166325,60855.0,60854.0,0.1862]
[1727909382459,0.002,60855.0,60854.0,0.1862]
[1727909382675,0.166325,60855.0,60854.0,0.1862]
[1727909383949,0.166325,60855.0,60854.0,0.1075]
[1727909384193,0.166325,60855.0,60854.0,0.009]
[1727909384855,0.166325,60855.0,60854.0,0.010634]
[1727909387609,0.19208726,60855.0,60854.0,0.010634]
[1727909394880,0.166325,60855.0,60854.0,0.010634]
[1727909395800,0.002,60855.0,60854.0,0.267161]
[1727909396019,0.002,60855.0,60854.0,0.349561]
[1727909397857,0.002,60855.0,60854.0,0.84139771]
[1727909398087,0.02576024,60860.0,60859.0,0.164314]
[1727909398344,0.02576024,60860.0,60859.0,0.85753058]
[1727909399253,0.000817,60861.0,60859.0,0.51681658]
[1727909399481,0.000817,60861.0,60860.0,0.337211]
[1727909399708,0.000817,60861.0,60860.0,0.665831]
[1727909400872,0.000817,60861.0,60860.0,0.675831]
[1727909400873,0.001817,60861.0,60860.0,0.675831]
[1727909402276,0.001817,60861.0,60860.0,0.689831]
[1727909404383,0.166125,60861.0,60860.0,0.44432]
[1727909404621,0.166125,60861.0,60860.0,0.35262]
[1727909404869,0.24005407,60861.0,60860.0,0.35262]
[1727909405092,0.166125,60861.0,60860.0,0.35262]
[1727909405325,0.166125,60861.0,60860.0,0.33862]
[1727909405551,0.36507737,60861.0,60860.0,0.33762]
[1727909406007,0.36407737,60861.0,60860.0,0.32862]
[1727909406241,0.36507737,60861.0,60860.0,0.34062]
[1727909406466,0.36607737,60861.0,60860.0,0.34962]
[1727909407011,0.20176937,60861.0,60860.0,0.513931]
[1727909407228,0.20176937,60861.0,60860.0,0.87871758]
[1727909407229,0.002817,60861.0,60860.0,0.87871758]
[1727909407456,0.02857643,60861.0,60860.0,0.87871758]
[1727909410314,0.02857643,60861.0,60860.0,1.04190429]
[1727909410315,0.002817,60861.0,60860.0,1.04190429]
[1727909411161,0.41049462,60878.0,60860.0,1.04190429]
[1727909411162,0.24623062,60878.0,60870.0,0.25749911]
[1727909411424,0.24623062,60878.0,60877.0,0.44595158]
[1727909411696,0.24623062,60878.0,60877.0,0.85048158]
[1727909411978,0.19000352,60883.0,60880.0,0.164257]
[1727909412195,0.02575352,60883.0,60878.0,0.328524]
[1727909412440,0.02575352,60883.0,60881.0,0.32851]
[1727909412685,0.02575352,60883.0,60881.0,0.492762]
[1727909413170,0.02575352,60883.0,60881.0,0.492763]
[1727909413171,0.02675352,60883.0,60881.0,0.492763]
[1727909413701,0.02675352,60883.0,60881.0,0.33751]
[1727909413928,0.164252,60882.0,60881.0,0.33751]
[1727909414655,0.165249,60883.0,60881.0,0.33751]
[1727909414899,0.165249,60883.0,60881.0,0.34651]
[1727909415383,0.164249,60883.0,60881.0,0.32851]
[1727909415626,0.164249,60883.0,60881.0,0.35251]
[1727909415891,0.164249,60883.0,60881.0,0.33951]
[1727909416141,0.164249,60883.0,60881.0,0.35151]
[1727909416364,0.164246,60885.0,60881.0,0.35151]
[1727909416610,0.164243,60886.0,60882.0,0.164251]
[1727909416853,0.164243,60886.0,60883.0,0.3285]
[1727909417402,0.18999201,60886.0,60883.0,0.3285]
[1727909417621,0.02574901,60886.0,60883.0,0.3285]
[1727909417842,0.164244,60885.0,60883.0,0.3285]
[1727909418066,0.02574901,60886.0,60883.0,0.3285]
[1727909418067,0.164246,60884.0,60883.0,0.3285]
[1727909418517,0.164246,60884.0,60883.0,0.3365]
[1727909418974,0.164246,60884.0,60883.0,0.3285]
[1727909419218,0.164246,60884.0,60883.0,0.3485]
[1727909419438,0.164246,60884.0,60883.0,0.3385]
[1727909419677,0.164246,60884.0,60883.0,0.3495]
[1727909420581,0.000817,60884.0,60883.0,0.3495]
[1727909420796,0.165063,60884.0,60883.0,0.3495]
[1727909421020,0.000817,60884.0,60883.0,0.3495]
[1727909421281,0.000817,60884.0,60883.0,0.513749]
[1727909421513,0.000817,60884.0,60883.0,0.3495]
[1727909425756,0.000817,60884.0,60883.0,0.684549]
[1727909427346,0.02656498,60884.0,60883.0,0.684549]
[1727909428238,0.02656498,60884.0,60883.0,0.84773571]
[1727909428457,0.000817,60884.0,60883.0,0.84773571]
[1727909430499,0.000817,60884.0,60883.0,0.684549]
[1727909432313,0.01011231,60884.0,60883.0,0.684549]
[1727909432574,0.000817,60884.0,60883.0,0.684549]
[1727909432946,0.01011485,60884.0,60883.0,0.684549]
[1727909433379,0.000817,60884.0,60883.0,0.84773571]
[1727909434348,0.000817,60884.0,60883.0,0.83773571]
[1727909434753,0.000817,60884.0,60883.0,0.84773571]
[1727909434991,0.000817,60884.0,60883.0,0.83673571]
[1727909435235,0.000817,60884.0,60883.0,0.683549]
[1727909435747,0.000817,60884.0,60883.0,0.687549]
[1727909436763,0.000817,60884.0,60883.0,0.663549]
[1727909437011,0.000817,60884.0,60883.0,0.677549]
[1727909437226,0.000817,60884.0,60883.0,0.691549]
[1727909437436,0.000817,60884.0,60883.0,0.677549]
[1727909437888,0.000817,60884.0,60883.0,0.691549]
[1727909438561,0.000817,60884.0,60883.0,0.677549]
[1727909438794,0.000817,60884.0,60883.0,0.5273]
[1727909439261,0.165063,60884.0,60883.0,0.4483]
[1727909439488,0.01013,60884.0,60883.0,0.4483]
[1727909439941,0.174376,60884.0,60883.0,0.4343]
[1727909440159,0.174376,60884.0,60883.0,0.4203]
[1727909440380,0.174376,60884.0,60883.0,0.4333]
[1727909440610,0.01013,60884.0,60883.0,0.607549]
[1727909440832,0.01013,60884.0,60883.0,0.4433]
[1727909441054,0.01013,60884.0,60883.0,0.4333]
[1727909441274,0.01013,60884.0,60883.0,0.4463]
[1727909441470,0.03587832,60884.0,60883.0,0.610549]
[1727909443083,0.02656532,60884.0,60883.0,0.610549]
[1727909444172,0.000817,60884.0,60883.0,0.610549]
[1727909444621,0.000817,60884.0,60883.0,0.4463]
[1727909444861,0.01010665,60884.0,60883.0,0.610549]
[1727909445084,0.000817,60884.0,60883.0,0.610549]
[1727909449844,0.000817,60884.0,60883.0,0.693349]
[1727909450873,0.000817,60884.0,60883.0,0.85653571]
[1727909452490,0.000817,60884.0,60883.0,0.84353571]
[1727909452728,0.000817,60884.0,60883.0,0.83053571]
[1727909453195,0.000817,60884.0,60883.0,0.84453571]
[1727909453864,0.000817,60884.0,60883.0,0.85853571]
[1727909454113,0.000817,60884.0,60883.0,0.83053571]
[1727909454454,0.000817,60884.0,60883.0,0.85853571]
[1727909454457,0.000817,60884.0,60883.0,0.86053571]
[1727909454654,0.000817,60884.0,60883.0,0.85853571]
[1727909455262,0.000817,60884.0,60883.0,0.86053571]
[1727909455495,0.000817,60884.0,60883.0,0.85853571]
[1727909459469,0.000816,60889.0,60888.0,0.164235]
[1727909459710,0.000816,60889.0,60888.0,1.02647829]
[1727909460837,0.000816,60889.0,60888.0,1.04047829]
[1727909461931,0.000816,60889.0,60888.0,1.02847829]